Workbook

Sheet 封面
A2: 2016年陆丰市人民政府办公室 部门预算报表

Sheet 目录
A1: 2016年度陆丰市人民政府办公室预算报表
A2: 目录
A3: 一、收支总体情况表
A4: 二、收入总体情况表
A5: 三、支出总体情况表
A6: 四、财政拨款收支总体情况表
A7: 五、一般公共预算支出情况表（按功能分类科目）
A8: 六、一般公共预算基本支出情况表（按支出经济分类科目）
A9: 七、一般公共预算三公经费预算表
A10: 八、政府性基金支出预算表

Sheet 收支总体情况表
D1: 表1
A2: 收支总体情况表
A3: 单位名称：陆丰市人民政府办公室 | D3: 单位：万元
A4: 收入 | C4: 支出
A5: 项 目 | B5: 2016年预算 | C5: 项 目 | D5: 2016年预算
A6: 一、财政拨款 | B6: 1594.6 | C6: 一、基本支出 | D6: 1198.7
A7: 二、财政专户拨款 | C7: 二、项目支出 | D7: 395.9
A8: 三、其他资金拨款 | C8: 三、事业单位经营支出
A10: 本年收入合计 | B10: 1594.6 | C10: 本年支出合计 | D10: =SUM(D6:D8) -> 1594.6
A12: 四、上级补助收入 | C12: 四、对附属单位补助支出
A13: 五、附属单位上缴收入 | C13: 五、上缴上级支出
A14: 六、用事业基金弥补收支总额 | C14: 六、结转下年
A16: 收入总计 | B16: =B10 -> 1594.6 | C16: 支出总计 | D16: =D10 -> 1594.6
A17: 注：财政拨款收支情况包括一般公共预算、政府性基金预算、国有资本经营预算拨款收支情况

Sheet 收入总体情况表
B1: 表2
A2: 收入总体情况表
A3: 单位名称：陆丰市人民政府办公室 | B3: 单位：万元
A4: 项 目 | B4: 2016年预算
A5: 一、财政拨款 | B5: 1594.6
A6: 一般公共预算拨款
A7: 基金预算拨款
A8: 二、财政专户拨款
A9: 教育收费
A10: 其他财政收入拨款
A11: 三、其他资金拨款
A12: 事业收入
A13: 事业单位经营收入
A14: 其他收入
A16: 本 年 收 入 合 计 | B16: =B5 -> 1594.6
A18: 四、上级补助收入
A19: 五、附属单位上缴收入
A20: 六、用事业基金弥补收支总额
A22: 收 入 总 计 | B22: =B16 -> 1594.6

Sheet 支出总体情况表
B1: 表3
A2: 支出总体情况表
A3: 单位名称：陆丰市人民政府办公室 | B3: 单位：万元
A4: 支出
A5: 项 目
A6: 一、基本支出 | B6: 1198.7
A7: 工资福利支出 | B7: 568.8
A8: 一般商品和服务支出 | B8: 395
A9: 对个人和家庭的补助 | B9: 234.9
A10: 其他资本性支出等
A12: 二、项目支出 | B12: 395.9
A13: 日常运转类项目 | B13: 395.9
A14: 政府购买服务类项目
A15: 其他类项目
A16: 科技研发类项目
A17: 基本建设类项目
A18: 补助企事业类项目
A19: 信息化运维类项目
A20: 专项业务类项目
A21: 因公出国（境）项目
A22: 信息系统建设类项目
A24: 三、事业单位经营支出
A26: 本 年 支 出 合 计 | B26: =B6+B12 -> 1594.6
A28: 四、对附属单位补助支出
A29: 五、上缴上级支出
A30: 六、结转下年
A32: 支 出 总 计 | B32: =B26 -> 1594.6

Sheet 财政拨款收支总体情况表
D1: 表4
A2: 财政拨款收支总体情况表
A3: 单位名称：陆丰市人民政府办公室 | D3: 单位：万元
A4: 收入 | C4: 支出
A5: 项 目 | B5: 2016年预算 | C5: 项 目 | D5: 2016年预算
A6: 一、一般公共预算拨款 | B6: 1594.6 | C6: 一、一般公共预算拨款 | D6: 1594.6
A7: 二、政府性基金预算 | C7: 二、政府性基金预算
A8: 三、国有资本经营预算 | C8: 三、国有资本经营预算
A10: 本年收入合计 | B10: =B6 -> 1594.6 | C10: 本年支出合计 | D10: =D6 -> 1594.6

Sheet 一般公共预算支出情况表（按功能分类科目）
D1: 表5
A2: 一般公共预算支出情况表（按功能分类科目）
A3: 单位名称：陆丰市人民政府办公室 | D3: 单位：万元
A4: 功能科目名称 | B4: 一般公共预算支出
B5: 小计 | C5: 其中：基本支出 | D5: 项目支出
A6: 合 计 | B6: =SUM(B7:B12) -> 1594.6 | C6: =SUM(C7:C14) -> 1198.7 | D6: =SUM(D7:D11) -> 395.9
A7: 2010301 行政运行（政府办公厅（室）及相关机构事务） | B7: =SUM(C7:D7) -> 963.8 | C7: 963.8
A8: 2010302 一般行政管理事务（政府办公厅（室）及相关机构事务） | B8: =SUM(C8:D8) -> 395.9 | D8: 395.9
A9: 2080501归口管理的行政单位离退休 | B9: =SUM(C9:D9) -> 164.5 | C9: 164.5
A10: 2101101行政单位医疗 | B10: =SUM(C10:D10) -> 30.2 | C10: 30.2
A11: 2210201 住房公积金 | B11: =SUM(C11:D11) -> 40.2 | C11: 40.2

Sheet 一般公共预算基本支出情况表（按支出经济分类科目）
C1: 表6
A2: 一般公共预算基本支出情况表（按支出经济分类科目）
A3: 单位名称：陆丰市人民政府办公室 | C3: 单位：万元
A4: 政府预算支出经济分类 | B4: 部门预算支出经济类科目 | C4: 2016年预算
B5: 合 计 | C5: =C6+C13+C33+C46 -> 1198.7
A6: [501]机关工资福利支出 | B6: [301]工资福利支出 | C6: =SUM(C7:C12) -> 609
A7: [50101]工资奖金津补贴 | B7: [30101]基本工资 | C7: 288.8
A8: [50101]工资奖金津补贴 | B8: [30102]津贴补贴 | C8: 230
A9: [50101]工资奖金津补贴 | B9: [30103]奖金
A10: [50102]社会保障缴费 | B10: [30112]其他社会保障缴费 | C10: 50
A11: [50103]住房公积金 | B11: [30113]住房公积金 | C11: 40.2
A12: [50199]其他福利支出 | B12: [30106]其他
A13: [502]机关商品和服务支出 | B13: [302]商品和服务支出 | C13: =SUM(C14:C32) -> 395
A14: [50201]办公经费 | B14: [30201]办公费 | C14: 144.5
A15: [50201]办公经费 | B15: [30202]印刷费 | C15: 10
A16: [50201]办公经费 | B16: [30204]手续费
A17: [50201]办公经费 | B17: [30205]水费
A18: [50201]办公经费 | B18: [30206]电费
A19: [50201]办公经费 | B19: [30207]邮电费
A20: [50201]办公经费 | B20: [30209]物业管理费
A21: [50201]办公经费 | B21: [30211]差旅费 | C21: 35
A22: [50201]办公经费 | B22: [30228]工会经费
A23: [50201]办公经费 | B23: [30229]福利费
A24: [50201]办公经费 | B24: [30239]其他交通费
A25: [50202]会议费 | B25: [30215]会议费
A26: [50203]培训费 | B26: [30216]培训费
A27: [50205]委托业务费 | B27: [30226]劳务费 | C27: 29.1
A28: [50206]公务接待费 | B28: [30217]公务接待费
A29: [50207]因公出国了（境）费用 | B29: [30212]因公出国了（境）费用
A30: [50208]公务用车运行维护费 | B30: [30213]公务用车运行维护费 | C30: 32
A31: [50209]维修（护）费 | B31: [30213]维护（修）费 | C31: 3
A32: [50299]其他商品和服务支出 | B32: [30299]其他商品和服务支出 | C32: 141.4
A33: [503]机关资本性支出（一） | B33: [310]资本性支出
A34: [50306]设备购置 | B34: [31002]办公设备购置
A35: [50399]其他资本性支出 | B35: [31099]其他资本性支出
A36: [505]对事业单位经常性补助 | B36: [301]工资福利支出
A37: [50501]工资福利支出 | B37: [30101]基本工资
A38: [50501]工资福利支出 | B38: [30102]津贴补贴
A39: [50501]工资福利支出 | B39: [30103]奖金
A40: [50501]工资福利支出 | B40: [30107]绩效工资
A41: [50501]工资福利支出 | B41: [30113]住房公积金
A42: [50501]工资福利支出 | B42: [30199]其他工资福利支出
A43: [505]对事业单位经常性补助 | B43: [302]商品和服务支出
A44: [50502]商品和服务支出 | B44: [30201]办公费
A45: [50502]商品和服务支出 | B45: [30299]其他商品和服务支出
A46: [509]对个人和家庭的补助 | B46: [303]对个人和家庭的补助 | C46: =SUM(C47:C53) -> 194.7
A47: [50901]社会福利和救助 | B47: [30304]抚恤金
A48: [50901]社会福利和救助 | B48: [30305]生活补助
A49: [50901]社会福利和救助 | B49: [30307]医疗费补助 | C49: 30.2
A50: [50901]社会福利和救助 | B50: [30309]奖励金
A51: [50905]离退休费 | B51: [30301]离休费 | C51: 28.23
A52: [50905]离退休费 | B52: [30302]退休费 | C52: 136.27
A53: [50999]其他对个人和家庭的补助 | B53: [30399]其他对个人和家庭的补助

Sheet 一般公共预算“三公”经费支出情况表
A1: 2016年县级部门预算单位“三公经费”支出预算表
A2: 填报单位:陆丰市人民政府办公室 | H2: 单位：万元
A3: 单位名称 | B3: 公务用车费 | E3: 因公出国(境)费用 | F3: 公务接待费 | G3: 合计 | H3: 与上年情况比较
B4: 小计 | C4: 其 中
C5: 公务用车运行维护费 | D5: 公务用车购置
A6: 陆丰市人民政府办公室 | B6: 32 | C6: 32 | G6: 32 | H6: 与上年持平

Sheet 政府性基金预算支出情况表
D1: 表9
A2: 2016年政府性基金预算支出情况表
A3: 单位名称：陆丰市人民政府办公室 | D3: 单位：万元
A4: 功能科目名称 | B4: 政府性基金预算支出
B5: 小计 | C5: 其中：基本支出 | D5: 项目支出
A7: 注：如该部门无政府性基金安排的支出，则本表为空。同时按照财政部有关要求，以空表呈报省人代会审议。

Sheet 三公经费预算表
A1: 2016年部门财政拨款“三公”经费预算表
A3: 单位名称：陆丰市人民政府办公室 | B3: 单位：万元
A4: 项目 | B4: 金额
A5: “三公”经费 | B5: 32.00
A6: 其中：（一）因公出国（境）支出 | B6: 0.00
A7: （二）公务用车购置及运行维护支出 | B7: 32.00
A8: 1、公务用车购置 | B8: 0.00
A9: 2、公务用车运行维护费 | B9: 32.00
A10: （三）公务接待费支出 | B10: 0.00

Sheet Sheet1
